fUSD/lending_fUSD_20260702
["ID","MTS","AMOUNT","RATE_DAILY","PERIOD"]
[426881875,1782977448000,-1000.0,0.00030137,120]
[426881874,1782977448000,-799.37489077,0.00030137,30]
[426881877,1782977448000,-241.04653384,0.00030137,2]
[426881876,1782977448000,-1018.43,0.00030137,2]
[426881878,1782977448000,-482.09306769,0.00030137,2]
[426881868,1782977448000,-500.0,0.00030136,15]
[426881905,1782977448000,-25000.0,0.0003025,2]
[426881954,1782977448000,-214.08,0.000305,7]
[426881906,1782977448000,-12500.0,0.0003025,2]
[426881934,1782977448000,-13486.5,0.000304,7]
[426881935,1782977448000,-301.92,0.000304,7]
[426881936,1782977448000,-866.91246726,0.00030402,2]
[426881938,1782977448000,-254.0,0.00030411,120]
[426881942,1782977448000,-300.0,0.00030499,10]
[426881944,1782977448000,-800.0,0.000305,2]
[426881940,1782977448000,-152.0,0.00030459,6]
[426881945,1782977448000,-2499.97,0.000305,2]
[426881939,1782977448000,-228.0,0.00030411,120]
[426881941,1782977448000,-300.0,0.00030499,10]
[426881937,1782977448000,-163.65,0.00030411,120]
[426881946,1782977448000,-25000.0,0.000305,2]
[426881948,1782977448000,-15000.0,0.000305,2]
[426881947,1782977448000,-12500.0,0.000305,2]
[426881950,1782977448000,-754.5,0.000305,2]
[426881955,1782977448000,-1616.11,0.000305,2]
[426881953,1782977448000,-12500.0,0.000305,2]
[426881951,1782977448000,-12500.0,0.000305,2]
[426881949,1782977448000,-12500.0,0.000305,2]
[426881952,1782977448000,-800.0,0.000305,2]
[426881907,1782977448000,-25000.0,0.0003025,2]
[426881929,1782977448000,-529.79,0.00030374,7]
[426881932,1782977448000,-512.13,0.00030398,30]
[426881943,1782977448000,-300.0,0.00030499,10]
[426881933,1782977448000,-15000.0,0.000304,2]
[426881911,1782977448000,-2500.0,0.0003025,2]
[426881931,1782977448000,-12500.0,0.00030375,2]
[426881908,1782977448000,-12500.0,0.0003025,2]
[426881914,1782977448000,-350.0,0.00030283,3]
[426881912,1782977448000,-350.0,0.00030267,4]
[426881913,1782977448000,-463.0,0.00030279,10]
[426881910,1782977448000,-12500.0,0.0003025,2]
[426881916,1782977448000,-13702.56187946,0.00030326,2]
[426881915,1782977448000,-15000.0,0.000303,2]
[426881917,1782977448000,-1283.47347249,0.0003033,2]
[426881924,1782977448000,-279.4681998,0.0003036,2]
[426881909,1782977448000,-12500.0,0.0003025,2]
[426881920,1782977448000,-10000.0,0.00030333,2]
[426881930,1782977448000,-12500.0,0.00030375,2]
[426881926,1782977448000,-251.0,0.0003036,2]
[426881927,1782977448000,-251.0,0.0003036,2]
[426881925,1782977448000,-251.0,0.0003036,2]
[426881922,1782977448000,-217.30949367,0.00030336,2]
[426881928,1782977448000,-1121.52,0.00030374,7]
[426881918,1782977448000,-9000.0,0.00030332,5]
[426881923,1782977448000,-2000.0,0.0003034,16]
[426881921,1782977448000,-257.07971056,0.00030336,2]
[426881919,1782977448000,-10000.0,0.00030333,2]
[426881991,1782977449000,-151.0,0.00030625,7]
[426881987,1782977449000,-1698.099606,0.00030625,7]
[426881985,1782977449000,-1266.173167,0.00030625,7]
[426881986,1782977449000,-1266.173167,0.00030625,7]
[426881988,1782977449000,-1698.099606,0.00030625,7]
[426881997,1782977449000,-151.0,0.00030625,7]
[426881989,1782977449000,-1698.099606,0.00030625,7]
[426881992,1782977449000,-151.0,0.00030625,7]
[426881995,1782977449000,-1519.793693,0.00030625,7]
[426881994,1782977449000,-1519.793693,0.00030625,7]
[426881990,1782977449000,-1698.099606,0.00030625,7]
[426881996,1782977449000,-1519.793693,0.00030625,7]
[426882007,1782977449000,-557.162115,0.00030625,7]
[426881998,1782977449000,-151.0,0.00030625,7]
[426882000,1782977449000,-220.057134,0.00030625,7]
[426882001,1782977449000,-4818.077937,0.00030625,7]
[426881999,1782977449000,-160.716081,0.00030625,7]
[426882002,1782977449000,-4818.077937,0.00030625,7]
[426882003,1782977449000,-4818.077937,0.00030625,7]
[426882010,1782977449000,-751.885621,0.00030625,7]
[426882004,1782977449000,-4818.077937,0.00030625,7]
[426882005,1782977449000,-557.162115,0.00030625,7]
[426882009,1782977449000,-151.0,0.00030625,7]
[426881981,1782977449000,-2010.916756,0.00030625,7]
[426881993,1782977449000,-1519.793693,0.00030625,7]
[426881984,1782977449000,-1266.173167,0.00030625,7]
[426881957,1782977449000,-150.0,0.00030567,30]
[426881980,1782977449000,-2010.916756,0.00030625,7]
[426881956,1782977449000,-185.23,0.00030506,2]
[426881960,1782977449000,-15000.0,0.000306,2]
[426881962,1782977449000,-505.99,0.000306,7]
[426881958,1782977449000,-150.16,0.00030567,30]
[426881959,1782977449000,-500.0,0.00030574,20]
[426881961,1782977449000,-229.0,0.000306,30]
[426881963,1782977449000,-1283.47347253,0.00030604,2]
[426881964,1782977449000,-350.0,0.00030614,2]
[426881965,1782977449000,-361.72657512,0.00030616,2]
[426881966,1782977449000,-2673.00220165,0.00030624,4]
[426881968,1782977449000,-1877.07081917,0.00030624,4]
[426881982,1782977449000,-2010.916756,0.00030625,7]
[426881967,1782977449000,-857.34192344,0.00030624,4]
[426881971,1782977449000,-151.0,0.00030625,7]
[426881973,1782977449000,-151.0,0.00030625,7]
[426881969,1782977449000,-12500.0,0.00030625,2]
[426881972,1782977449000,-151.0,0.00030625,7]
[426881975,1782977449000,-186.223403,0.00030625,7]
[426881979,1782977449000,-186.223403,0.00030625,7]
[426881977,1782977449000,-186.223403,0.00030625,7]
[426881974,1782977449000,-151.0,0.00030625,7]
[426881976,1782977449000,-186.223403,0.00030625,7]
[426881978,1782977449000,-2010.916756,0.00030625,7]
[426881983,1782977449000,-1266.173167,0.00030625,7]
[426881970,1782977449000,-12500.0,0.00030625,2]
[426882006,1782977449000,-557.162115,0.00030625,7]
[426882008,1782977449000,-557.162115,0.00030625,7]
[426882013,1782977449000,-751.885621,0.00030625,7]
[426882038,1782977449000,-1017.09064,0.0003065,7]
[426882040,1782977449000,-340.250989,0.0003065,7]
[426882044,1782977449000,-2673.00220165,0.0003065,4]
[426882046,1782977449000,-2673.00220165,0.0003065,4]
[426882049,1782977449000,-2673.00220165,0.0003065,4]
[426882045,1782977449000,-2673.00220165,0.0003065,4]
[426882048,1782977449000,-2673.00220165,0.0003065,4]
[426882047,1782977449000,-2673.00220165,0.0003065,4]
[426882051,1782977449000,-2673.00220165,0.0003065,4]
[426882055,1782977449000,-857.34192344,0.0003065,4]
[426882050,1782977449000,-2673.00220165,0.0003065,4]
[426882053,1782977449000,-857.34192344,0.0003065,4]
[426882052,1782977449000,-857.34192344,0.0003065,4]
[426882054,1782977449000,-857.34192344,0.0003065,4]
[426882058,1782977449000,-857.34192344,0.0003065,4]
[426882056,1782977449000,-857.34192344,0.0003065,4]
[426882059,1782977449000,-857.34192344,0.0003065,4]
[426882057,1782977449000,-857.34192344,0.0003065,4]
[426882065,1782977449000,-1877.07081917,0.0003065,4]
[426882060,1782977449000,-857.34192344,0.0003065,4]
[426882066,1782977449000,-1877.07081917,0.0003065,4]
[426882061,1782977449000,-1877.07081917,0.0003065,4]
[426882062,1782977449000,-1877.07081917,0.0003065,4]
[426882011,1782977449000,-151.0,0.00030625,7]
[426882064,1782977449000,-1877.07081917,0.0003065,4]
[426882043,1782977449000,-2673.00220165,0.0003065,4]
[426882042,1782977449000,-2673.00220165,0.0003065,4]
[426882063,1782977449000,-1877.07081917,0.0003065,4]
[426882039,1782977449000,-340.250989,0.0003065,7]
[426882041,1782977449000,-340.250989,0.0003065,7]
[426882016,1782977449000,-552.595958,0.00030625,7]
[426882015,1782977449000,-751.885621,0.00030625,7]
[426882014,1782977449000,-552.595958,0.00030625,7]
[426882021,1782977449000,-155.434734,0.00030625,7]
[426882022,1782977449000,-155.434734,0.00030625,7]
[426882018,1782977449000,-552.595958,0.00030625,7]
[426882020,1782977449000,-155.434734,0.00030625,7]
[426882017,1782977449000,-751.885621,0.00030625,7]
[426882019,1782977449000,-155.434734,0.00030625,7]
[426882024,1782977449000,-156.325093,0.00030625,7]
[426882023,1782977449000,-156.325093,0.00030625,7]
[426882012,1782977449000,-552.595958,0.00030625,7]
[426882028,1782977449000,-370.804641,0.00030625,7]
[426882037,1782977449000,-1017.09064,0.0003065,7]
[426882036,1782977449000,-1017.09064,0.0003065,7]
[426882034,1782977449000,-159.2,0.00030636,2]
[426882025,1782977449000,-156.325093,0.00030625,7]
[426882033,1782977449000,-151.0,0.00030625,7]
[426882035,1782977449000,-1017.09064,0.0003065,7]
[426882032,1782977449000,-151.0,0.00030625,7]
[426882029,1782977449000,-370.804641,0.00030625,7]
[426882030,1782977449000,-370.804641,0.00030625,7]
[426882026,1782977449000,-156.325093,0.00030625,7]
[426882031,1782977449000,-151.0,0.00030625,7]
[426882027,1782977449000,-370.804641,0.00030625,7]
[426882103,1782977450000,-1293.959,0.00030759,2]
[426882104,1782977450000,-1386.537,0.00030759,2]
[426882101,1782977450000,-12500.0,0.0003075,2]
[426882102,1782977450000,-12500.0,0.0003075,2]
[426882092,1782977450000,-300.0,0.00030699,10]
[426882094,1782977450000,-153.406732,0.000307,7]
[426882100,1782977450000,-12500.0,0.0003075,2]
[426882098,1782977450000,-25000.0,0.0003075,2]
[426882096,1782977450000,-747.88,0.00030746,30]
[426882097,1782977450000,-250.59121503,0.00030749,10]
[426882105,1782977450000,-350.0,0.00030759,2]
[426882111,1782977450000,-857.34192344,0.0003081,4]
[426882106,1782977450000,-1234.848,0.00030759,2]
[426882110,1782977450000,-2673.00220165,0.0003081,4]
[426882107,1782977450000,-13702.56187946,0.00030775,2]
[426882108,1782977450000,-13486.5,0.000308,7]
[426882121,1782977450000,-500.0,0.0003087,2]
[426882115,1782977450000,-221.0,0.00030868,2]
[426882113,1782977450000,-1645.58312333,0.0003084,2]
[426882117,1782977450000,-250.0,0.00030868,2]
[426882114,1782977450000,-150.0,0.00030868,2]
[426882118,1782977450000,-150.0,0.00030868,2]
[426882095,1782977450000,-56136.11392453,0.000307,8]
[426882109,1782977450000,-301.92,0.000308,7]
[426882099,1782977450000,-12500.0,0.0003075,2]
[426882079,1782977450000,-155.354817,0.00030667,7]
[426882091,1782977450000,-251.0,0.0003069,2]
[426882078,1782977450000,-315.763905,0.00030667,7]
[426882068,1782977450000,-1877.07081917,0.0003065,4]
[426882076,1782977450000,-315.763905,0.00030667,7]
[426882077,1782977450000,-151.0,0.00030667,7]
[426882067,1782977450000,-1877.07081917,0.0003065,4]
[426882069,1782977450000,-1877.07081917,0.0003065,4]
[426882071,1782977450000,-529.79,0.00030666,7]
[426882074,1782977450000,-315.763905,0.00030667,7]
[426882073,1782977450000,-10000.0,0.00030667,2]
[426882072,1782977450000,-10000.0,0.00030667,2]
[426882070,1782977450000,-1121.52,0.00030666,7]
[426882075,1782977450000,-315.763905,0.00030667,7]
[426882080,1782977450000,-151.0,0.00030667,7]
[426882081,1782977450000,-151.0,0.00030667,7]
[426882082,1782977450000,-151.0,0.00030667,7]
[426882085,1782977450000,-251.0,0.0003069,2]
[426882083,1782977450000,-151.0,0.00030667,7]
[426882089,1782977450000,-251.0,0.0003069,2]
[426882088,1782977450000,-251.0,0.0003069,2]
[426882086,1782977450000,-251.0,0.0003069,2]
[426882087,1782977450000,-251.0,0.0003069,2]
[426882084,1782977450000,-251.0,0.0003069,2]
[426882090,1782977450000,-251.0,0.0003069,2]
[426882093,1782977450000,-2526.62,0.000307,2]
[426882116,1782977450000,-210.369,0.00030868,2]
[426882112,1782977450000,-1877.07081917,0.0003081,4]
[426882119,1782977450000,-150.587,0.00030868,2]
[426882148,1782977450000,-800.0,0.00031,2]
[426882152,1782977450000,-193.01,0.00031,2]
[426882150,1782977450000,-302.0,0.00031,120]
[426882154,1782977450000,-12500.0,0.00031,2]
[426882155,1782977450000,-12500.0,0.00031,2]
[426882153,1782977450000,-634.5,0.00031,2]
[426882156,1782977450000,-12500.0,0.00031,2]
[426882157,1782977450000,-10000.0,0.00031,2]
[426882158,1782977450000,-800.0,0.00031,2]
[426882159,1782977450000,-214.08,0.00031,7]
[426882161,1782977450000,-285.05513885,0.00031,30]
[426882162,1782977450000,-251.0,0.0003102,2]
[426882164,1782977450000,-251.0,0.0003102,2]
[426882163,1782977450000,-251.0,0.0003102,2]
[426882165,1782977450000,-251.0,0.0003102,2]
[426882166,1782977450000,-251.0,0.0003102,2]
[426882167,1782977450000,-251.0,0.0003102,2]
[426882172,1782977450000,-164.26,0.00031078,2]
[426882170,1782977450000,-350.0,0.00031044,2]
[426882169,1782977450000,-160.592603,0.00031024,10]
[426882168,1782977450000,-251.0,0.0003102,2]
[426882171,1782977450000,-361.72657512,0.0003106,2]
[426882120,1782977450000,-150.0,0.00030868,2]
[426882149,1782977450000,-200.0,0.00031,11]
[426882145,1782977450000,-353.25059781,0.00031,5]
[426882160,1782977450000,-1000.0,0.00031,7]
[426882146,1782977450000,-175.54819764,0.00031,120]
[426882144,1782977450000,-3885.73492806,0.00031,120]
[426882122,1782977450000,-1121.52,0.00030874,7]
[426882126,1782977450000,-1121.60541728,0.00030874,7]
[426882131,1782977450000,-529.9367645,0.00030874,7]
[426882125,1782977450000,-1121.52,0.00030874,7]
[426882129,1782977450000,-529.79,0.00030874,7]
[426882123,1782977450000,-1121.52,0.00030874,7]
[426882130,1782977450000,-529.79,0.00030874,7]
[426882127,1782977450000,-529.79,0.00030874,7]
[426882128,1782977450000,-529.79,0.00030874,7]
[426882142,1782977450000,-1877.07081917,0.00030943,4]
[426882132,1782977450000,-12500.0,0.00030875,2]
[426882124,1782977450000,-1121.52,0.00030874,7]
[426882141,1782977450000,-857.34192344,0.00030943,4]
[426882147,1782977450000,-177.8140475,0.00031,14]
[426882143,1782977450000,-561.82638484,0.00031,2]
[426882137,1782977450000,-200.0,0.000309,4]
[426882136,1782977450000,-400.0,0.000309,11]
[426882138,1782977450000,-5864.50644178,0.00030924,2]
[426882151,1782977450000,-2000.0,0.00031,16]
[426882135,1782977450000,-822.61535629,0.00030886,2]
[426882134,1782977450000,-3547.23790087,0.00030875,2]
[426882140,1782977450000,-2673.00220165,0.00030943,4]
[426882133,1782977450000,-12306.23,0.00030875,2]
[426882139,1782977450000,-372.49695097,0.00030924,2]
[426882217,1782977451000,-1049.67121807,0.000314,2]
[426882212,1782977451000,-535.56138164,0.00031356,60]
[426882219,1782977451000,-20380.73159139,0.0003143,4]
[426882221,1782977451000,-2673.00220165,0.00031466,4]
[426882222,1782977451000,-857.34192344,0.00031466,4]
[426882220,1782977451000,-350.0,0.00031435,5]
[426882205,1782977451000,-251.0,0.0003135,2]
[426882203,1782977451000,-251.0,0.0003135,2]
[426882206,1782977451000,-251.0,0.0003135,2]
[426882201,1782977451000,-10000.0,0.00031333,2]
[426882202,1782977451000,-251.0,0.0003135,2]
[426882204,1782977451000,-22804.0,0.0003135,2]
[426882215,1782977451000,-1049.67121808,0.000314,2]
[426882232,1782977451000,-214.08,0.000315,7]
[426882218,1782977451000,-2007.0,0.00031421,7]
[426882213,1782977451000,-537.74883894,0.00031356,60]
[426882214,1782977451000,-12500.0,0.00031375,2]
[426882216,1782977451000,-1049.67121807,0.000314,2]
[426882224,1782977451000,-350.0,0.00031468,20]
[426882234,1782977451000,-315.763905,0.000315,7]
[426882225,1782977451000,-500.0,0.00031491,22]
[426882223,1782977451000,-1877.07081917,0.00031466,4]
[426882227,1782977451000,-12500.0,0.000315,2]
[426882226,1782977451000,-12500.0,0.000315,2]
[426882233,1782977451000,-315.763905,0.000315,7]
[426882200,1782977451000,-3200.96239723,0.000313,2]
[426882211,1782977451000,-500.0,0.00031356,60]
[426882209,1782977451000,-1266.21275649,0.0003135,2]
[426882185,1782977451000,-151.0,0.0003116,7]
[426882198,1782977451000,-857.34192344,0.00031262,4]
[426882173,1782977451000,-209.86,0.00031085,10]
[426882175,1782977451000,-12500.0,0.00031125,2]
[426882229,1782977451000,-150.0,0.000315,2]
[426882177,1782977451000,-311.52,0.00031137,30]
[426882174,1782977451000,-283.5317198,0.00031111,3]
[426882178,1782977451000,-2673.00220165,0.00031138,4]
[426882179,1782977451000,-857.34192344,0.00031138,4]
[426882176,1782977451000,-163.62,0.00031129,2]
[426882182,1782977451000,-337.58,0.00031141,30]
[426882180,1782977451000,-1877.07081917,0.00031138,4]
[426882184,1782977451000,-151.0,0.0003116,7]
[426882181,1782977451000,-512.13,0.00031141,30]
[426882183,1782977451000,-299625.2810319,0.0003116,2]
[426882186,1782977451000,-151.0,0.0003116,7]
[426882188,1782977451000,-248.87,0.00031163,30]
[426882189,1782977451000,-337.59,0.00031193,30]
[426882197,1782977451000,-2673.00220165,0.00031262,4]
[426882190,1782977451000,-505.99,0.000312,7]
[426882191,1782977451000,-13486.5,0.000312,7]
[426882187,1782977451000,-151.0,0.0003116,7]
[426882196,1782977451000,-12500.0,0.0003125,2]
[426882195,1782977451000,-12500.0,0.0003125,2]
[426882193,1782977451000,-248.87,0.00031212,30]
[426882192,1782977451000,-301.92,0.000312,7]
[426882194,1782977451000,-12499.91,0.0003125,2]
[426882199,1782977451000,-1877.07081917,0.00031262,4]
[426882208,1782977451000,-251.0,0.0003135,2]
[426882207,1782977451000,-251.0,0.0003135,2]
[426882231,1782977451000,-800.0,0.000315,2]
[426882210,1782977451000,-466.14263032,0.00031355,30]
[426882230,1782977451000,-800.0,0.000315,2]
[426882264,1782977451000,-151.0,0.000315,7]
[426882266,1782977451000,-4818.077937,0.000315,7]
[426882265,1782977451000,-4818.077937,0.000315,7]
[426882268,1782977451000,-4818.077937,0.000315,7]
[426882270,1782977451000,-557.162115,0.000315,7]
[426882267,1782977451000,-4818.077937,0.000315,7]
[426882269,1782977451000,-557.162115,0.000315,7]
[426882273,1782977451000,-151.0,0.000315,7]
[426882276,1782977451000,-552.595958,0.000315,7]
[426882283,1782977451000,-155.434734,0.000315,7]
[426882284,1782977451000,-155.434734,0.000315,7]
[426882272,1782977451000,-557.162115,0.000315,7]
[426882275,1782977451000,-151.0,0.000315,7]
[426882274,1782977451000,-751.885621,0.000315,7]
[426882277,1782977451000,-751.885621,0.000315,7]
[426882278,1782977451000,-552.595958,0.000315,7]
[426882281,1782977451000,-751.885621,0.000315,7]
[426882282,1782977451000,-552.595958,0.000315,7]
[426882280,1782977451000,-552.595958,0.000315,7]
[426882285,1782977451000,-155.434734,0.000315,7]
[426882287,1782977451000,-156.325093,0.000315,7]
[426882288,1782977451000,-156.325093,0.000315,7]
[426882291,1782977451000,-370.804641,0.000315,7]
[426882292,1782977451000,-370.804641,0.000315,7]
[426882286,1782977451000,-155.434734,0.000315,7]
[426882290,1782977451000,-156.325093,0.000315,7]
[426882228,1782977451000,-201.72662386,0.000315,2]
[426882271,1782977451000,-557.162115,0.000315,7]
[426882261,1782977451000,-1519.793693,0.000315,7]
[426882279,1782977451000,-751.885621,0.000315,7]
[426882263,1782977451000,-1519.793693,0.000315,7]
[426882237,1782977451000,-315.763905,0.000315,7]
[426882260,1782977451000,-1519.793693,0.000315,7]
[426882235,1782977451000,-315.763905,0.000315,7]
[426882241,1782977451000,-151.0,0.000315,7]
[426882245,1782977451000,-2010.916756,0.000315,7]
[426882242,1782977451000,-186.223403,0.000315,7]
[426882238,1782977451000,-151.0,0.000315,7]
[426882239,1782977451000,-151.0,0.000315,7]
[426882240,1782977451000,-151.0,0.000315,7]
[426882243,1782977451000,-186.223403,0.000315,7]
[426882236,1782977451000,-151.0,0.000315,7]
[426882246,1782977451000,-186.223403,0.000315,7]
[426882248,1782977451000,-2010.916756,0.000315,7]
[426882244,1782977451000,-186.223403,0.000315,7]
[426882289,1782977451000,-156.325093,0.000315,7]
[426882253,1782977451000,-1266.173167,0.000315,7]
[426882262,1782977451000,-1519.793693,0.000315,7]
[426882257,1782977451000,-1698.099606,0.000315,7]
[426882251,1782977451000,-1266.173167,0.000315,7]
[426882254,1782977451000,-1698.099606,0.000315,7]
[426882258,1782977451000,-151.0,0.000315,7]
[426882252,1782977451000,-1266.173167,0.000315,7]
[426882259,1782977451000,-184.178192,0.000315,7]
[426882249,1782977451000,-2010.916756,0.000315,7]
[426882247,1782977451000,-2010.916756,0.000315,7]
[426882250,1782977451000,-1266.173167,0.000315,7]
[426882255,1782977451000,-1698.099606,0.000315,7]
[426882256,1782977451000,-1698.099606,0.000315,7]
[426882313,1782977452000,-822.61535629,0.00031557,2]
[426882320,1782977452000,-251.0,0.0003168,2]
[426882315,1782977452000,-301.92,0.000316,7]
[426882312,1782977452000,-226.84688602,0.00031537,2]
[426882309,1782977452000,-228.99319689,0.00031537,2]
[426882317,1782977452000,-151.0,0.00031646,2]
[426882322,1782977452000,-251.0,0.0003168,2]
[426882325,1782977452000,-336816.54,0.000317,11]
[426882324,1782977452000,-152.61433426,0.00031688,2]
[426882318,1782977452000,-251.0,0.0003168,2]
[426882321,1782977452000,-251.0,0.0003168,2]
[426882323,1782977452000,-162.62,0.00031687,2]
[426882327,1782977452000,-12500.0,0.0003175,2]
[426882326,1782977452000,-2352.0,0.00031714,10]
[426882310,1782977452000,-285.60069916,0.00031537,2]
[426882328,1782977452000,-2673.00220165,0.00031793,30]
[426882319,1782977452000,-251.0,0.0003168,2]
[426882314,1782977452000,-13486.5,0.000316,7]
[426882305,1782977452000,-240.11074556,0.00031518,30]
[426882311,1782977452000,-241.41828692,0.00031537,2]
[426882330,1782977452000,-1877.07081917,0.00031793,30]
[426882293,1782977452000,-370.804641,0.000315,7]
[426882295,1782977452000,-151.0,0.000315,7]
[426882294,1782977452000,-370.804641,0.000315,7]
[426882297,1782977452000,-151.0,0.000315,7]
[426882302,1782977452000,-340.250989,0.000315,7]
[426882298,1782977452000,-1017.09064,0.000315,7]
[426882307,1782977452000,-188.26400183,0.00031528,15]
[426882296,1782977452000,-151.0,0.000315,7]
[426882304,1782977452000,-507.49219555,0.00031506,14]
[426882299,1782977452000,-1017.09064,0.000315,7]
[426882301,1782977452000,-1017.09064,0.000315,7]
[426882306,1782977452000,-429.66,0.00031519,3]
[426882303,1782977452000,-340.250989,0.000315,7]
[426882308,1782977452000,-311.52,0.00031529,30]
[426882316,1782977452000,-12500.0,0.00031625,2]
[426882300,1782977452000,-1017.09064,0.000315,7]
[426882331,1782977452000,-311.52,0.00031798,7]
[426882360,1782977452000,-34595.64269131,0.00032,15]
[426882329,1782977452000,-857.34192344,0.00031793,30]
[426882332,1782977452000,-505.99,0.000318,7]
[426882354,1782977452000,-466.14263032,0.00031963,30]
[426882356,1782977452000,-500.0,0.0003197,2]
[426882358,1782977452000,-1000.0,0.00031999,30]
[426882359,1782977452000,-612.93854249,0.00031999,30]
[426882357,1782977452000,-801.28328816,0.0003199,2]
[426882365,1782977452000,-5999.999999,0.00032,2]
[426882348,1782977452000,-512.13,0.00031885,30]
[426882367,1782977452000,-200.0,0.00032,12]
[426882366,1782977452000,-800.0,0.00032,5]
[426882361,1782977452000,-12500.0,0.00032,2]
[426882363,1782977452000,-5000.0,0.00032,2]
[426882364,1782977452000,-1771.90754046,0.00032,2]
[426882368,1782977452000,-5000.0,0.00032,5]
[426882370,1782977452000,-2215188.45282826,0.00032,30]
[426882369,1782977452000,-1234.6132586,0.00032,2]
[426882362,1782977452000,-184609.68169914,0.00032,2]
[426882351,1782977452000,-857.34,0.000319,30]
[426882353,1782977452000,-400.0,0.000319,11]
[426882352,1782977452000,-1877.07,0.000319,30]
[426882333,1782977452000,-337.58,0.00031802,7]
[426882336,1782977452000,-300.3,0.00031814,14]
[426882335,1782977452000,-229.4,0.00031814,14]
[426882340,1782977452000,-172.05,0.00031814,14]
[426882341,1782977452000,-162.5,0.00031814,14]
[426882350,1782977452000,-300.0,0.000319,7]
[426882337,1782977452000,-172.87,0.00031814,14]
[426882342,1782977452000,-162.5,0.00031814,14]
[426882338,1782977452000,-172.87,0.00031814,14]
[426882343,1782977452000,-162.5,0.00031814,14]
[426882344,1782977452000,-248.87,0.00031821,7]
[426882334,1782977452000,-150.15,0.00031814,14]
[426882345,1782977452000,-337.59,0.00031848,7]
[426882346,1782977452000,-248.87,0.00031865,7]
[426882347,1782977452000,-12500.0,0.00031875,2]
[426882355,1782977452000,-176.3,0.00031963,2]
[426882349,1782977452000,-433.71,0.00031887,7]
[426882339,1782977452000,-172.86,0.00031814,14]
[426882371,1782977453000,-556.13780826,0.00032,30]
[426882373,1782977453000,-637.73448723,0.00028831,2]
[426882374,1782977453000,-205.69219556,0.000299,5]
[426882376,1782977453000,-9783.50909863,0.00032,30]
[426882378,1782977453000,-1419.603837,0.00032,30]
[426882377,1782977453000,-29745.0,0.00032,30]
[426882372,1782977453000,-1174.96694924,0.00028831,2]
[426882380,1782977453000,-6211.25768473,0.0002839,10]
[426882383,1782977453000,-340.250989,0.0003065,7]
[426882385,1782977453000,-2882.88932371,0.00032,30]
[426882384,1782977453000,-340.250989,0.000315,7]
[426882375,1782977453000,-340.250989,0.000315,7]
[426882382,1782977453000,-340.250989,0.0003009,7]
[426882381,1782977453000,-340.250989,0.0003,7]
[426882379,1782977453000,-456.58231527,0.0002839,10]
[426882386,1782977478000,500.0,0.00037093,120]
[426882387,1782977479000,500.0,0.00037093,120]
[426882388,1782977479000,500.0,0.00037093,120]
[426882391,1782977480000,500.0,0.00037093,120]
[426882390,1782977480000,500.0,0.00037093,120]
[426882389,1782977480000,500.0,0.00037093,120]
[426882392,1782977481000,621.03031956,0.00037093,120]
[426882394,1782977492000,298.341595,0.00030135,120]
[426882399,1782977564000,500.0,0.00037093,120]
[426882400,1782977577000,567.5023,0.00028174,120]
[426882402,1782977581000,307.20230518,0.00037093,120]
[426882401,1782977581000,500.0,0.00037093,120]
[426882403,1782977639000,5250.3826,0.00024558,120]